bitfinex-derivatives/quotes_SOLF0:USTF0_20250731
["timestamp","ask_amount","ask_price","bid_price","bid_amount"]
[1753967136271,4.5207901,178.67,178.61,3.92815932]
[1753967136471,5.5982,178.65,178.62,5.5989]
[1753967136880,8.53212659,178.69,178.56,3.92815932]
[1753967137077,3.92815932,178.67,178.58,3.92815932]
[1753967137274,4.52075512,178.66,178.58,3.92815932]
[1753967137470,8.53212659,178.67,178.51,11.2046]
[1753967137471,8.44891444,178.65,178.57,5.6005]
[1753967137671,3.92815932,178.63,178.56,3.92815932]
[1753967137874,4.52075512,178.62,178.56,3.92815932]
[1753967138079,4.52075512,178.61,178.57,5.6005]
[1753967138280,4.52075512,178.6,178.55,3.92815932]
[1753967138578,3.92815932,178.63,178.55,3.92815932]
[1753967138780,4.51985086,178.62,178.56,5.6008]
[1753967138979,4.51985086,178.61,178.53,3.92815932]
[1753967139179,5.6009,178.57,178.54,5.6014]
[1753967139376,3.92815932,178.61,178.54,5.6014]
[1753967139577,4.51916659,178.6,178.54,5.6014]
[1753967139778,4.51916659,178.59,178.54,5.6014]
[1753967139979,3.92815932,178.61,178.54,5.6014]
[1753967140180,4.51915009,178.6,178.54,5.6014]
[1753967140379,4.51915009,178.59,178.53,3.92815932]
[1753967140683,3.92815932,178.63,178.55,3.92815932]
[1753967140874,6.18950138,178.66,178.48,11.2066]
[1753967140875,4.51693284,178.62,178.57,3.92815932]
[1753967141081,3.92815932,178.65,178.57,3.92815932]
[1753967141279,5.6,178.59,178.54,3.92815932]
[1753967141873,5.6,178.59,178.56,5.6007]
[1753967142074,5.6005,178.58,178.54,3.92815932]
[1753967142280,8.53212659,178.65,178.53,3.92815932]
[1753967142478,5.6001,178.59,178.53,3.92815932]
[1753967142684,3.92815932,178.61,178.52,3.92815932]
[1753967142875,4.51655663,178.6,178.52,3.92815932]
[1753967143081,3.92815932,178.61,178.54,5.6014]
[1753967143283,4.51634045,178.6,178.52,3.92815932]
[1753967143483,5.6006,178.58,178.52,3.92815932]
[1753967144183,5.6007,178.57,178.52,3.92815932]
[1753967144786,5.6009,178.56,178.54,5.6013]
[1753967145177,3.92815932,178.59,178.53,5.6017]
[1753967145379,5.6011,178.56,178.53,5.6017]
[1753967145574,3.92815932,178.59,178.53,5.6017]
[1753967146084,3.92815932,178.59,178.52,3.92815932]
[1753967146282,3.92815932,178.61,178.52,3.92815932]
[1753967147086,3.92815932,178.61,178.54,3.92815932]
[1753967147291,3.92815932,178.63,178.56,3.92815932]
[1753967147586,5.5994,178.61,178.56,3.92815932]
[1753967147883,3.92815932,178.63,178.48,11.2067]
[1753967148083,4.51729138,178.62,178.54,3.92815932]
[1753967148287,3.92815932,178.63,178.54,3.92815932]
[1753967148485,4.51714259,178.62,178.57,5.6005]
[1753967148688,5.5998,178.6,178.57,5.6005]
[1753967149084,3.92815932,178.63,178.56,5.6008]
[1753967149288,3.92815932,178.61,178.54,3.92815932]
[1753967149688,3.92815932,178.61,178.56,5.6007]
[1753967149986,5.6001,178.59,178.56,5.6007]
[1753967150185,3.92815932,178.61,178.54,3.92815932]
[1753967150385,3.92815932,178.61,178.55,5.6009]
[1753967150881,5.6002,178.59,178.56,5.6009]
[1753967151392,5.6002,178.59,178.57,5.6006]
[1753967151688,5.6002,178.59,178.54,3.92815932]
[1753967151988,5.6002,178.59,178.56,5.6008]
[1753967152192,3.92815932,178.62,178.54,3.92815932]
[1753967152381,4.51851754,178.61,178.54,3.92815932]
[1753967152581,3.92815932,178.62,178.57,5.6004]
[1753967152787,4.51923227,178.61,178.54,3.92815932]
[1753967152989,3.92815932,178.63,178.58,5.6001]
[1753967153180,4.51944455,178.62,178.58,5.6001]
[1753967153382,4.51944455,178.61,178.56,3.92815932]
[1753967153584,3.92815932,178.64,178.59,5.5998]
[1753967153782,4.52023541,178.63,178.56,3.92815932]
[1753967153986,4.52023541,178.62,178.56,3.92815932]
[1753967154289,5.5997,178.6,178.5,11.2052]
[1753967154588,5.5997,178.6,178.55,3.92815932]
[1753967154984,5.6001,178.59,178.55,3.92815932]
[1753967155185,3.92815932,178.61,178.52,3.92815932]
[1753967155385,5.6006,178.57,178.52,3.92815932]
[1753967155586,3.92815932,178.61,178.52,3.92815932]
[1753967156689,5.6012,178.56,178.53,5.6017]
[1753967156880,5.6012,178.56,178.52,3.92815932]
[1753967157290,3.92815932,178.61,178.52,3.92815932]
[1753967158390,5.6008,178.57,178.54,5.6014]
[1753967159092,5.601,178.56,178.54,5.6014]
[1753967159386,3.92815932,178.57,178.48,3.92815932]
[1753967159590,4.60396727,178.61,178.48,3.92815932]
[1753967159786,3.92815932,178.57,178.48,3.92815932]
[1753967160091,3.92815932,178.55,178.48,3.92815932]
[1753967160292,6.18950138,178.63,178.43,479.94]
[1753967160293,4.60396727,178.6,178.47,3.92815932]
[1753967160491,3.92815932,178.55,178.47,3.92815932]
[1753967160987,3.92815932,178.55,178.43,376.26]
[1753967161181,3.92815932,178.55,178.48,3.92815932]
[1753967161893,5.6019,178.53,178.48,3.92815932]
[1753967162088,3.92815932,178.55,178.5,5.6028]
[1753967162288,11.1994,178.6,178.46,3.92815932]
[1753967162289,3.92815932,178.53,178.46,3.92815932]
[1753967162484,5.6027,178.51,178.46,3.92815932]
[1753967162792,3.92815932,178.53,178.46,3.92815932]
[1753967163182,3.92815932,178.55,178.43,376.26]
[1753967163394,3.92815932,178.55,178.48,3.92815932]
[1753967163690,3.92815932,178.53,178.48,5.6032]
[1753967163893,3.92815932,178.56,178.43,376.26]
[1753967164089,5.6034,178.49,178.43,376.26]
[1753967164292,3.92815932,178.5,178.46,5.604]
[1753967164494,3.92815932,178.5,178.42,3.92815932]
[1753967164895,3.92815932,178.52,178.44,3.92815932]
[1753967165095,3.92815932,178.52,178.38,107.70815932]
[1753967165096,3.92815932,178.52,178.46,3.92815932]
[1753967165493,3.92815932,178.54,178.46,3.92815932]
[1753967165695,5.6022,178.52,178.46,3.92815932]
[1753967166196,3.92815932,178.54,178.48,3.92815932]
[1753967166494,3.92815932,178.56,178.48,3.92815932]
[1753967166695,3.92815932,178.56,178.51,5.6025]
[1753967166696,4.52669886,178.55,178.51,5.6025]
[1753967166893,4.52669886,178.54,178.51,5.6025]
[1753967167091,3.92815932,178.56,178.51,5.6025]
[1753967167292,5.6016,178.54,178.51,5.6025]
[1753967167494,3.92815932,178.56,178.5,5.6027]
[1753967167696,8.45587344,178.55,178.48,3.92815932]
[1753967167898,10.12951412,178.54,178.48,3.92815932]
[1753967168085,3.92815932,178.55,178.48,3.92815932]
[1753967168291,4.5269697,178.54,178.48,3.92815932]
[1753967168490,3.92815932,178.56,178.5,5.6026]
[1753967168691,4.52860917,178.55,178.48,3.92815932]
[1753967168894,4.52860917,178.54,178.48,3.92815932]
[1753967169092,5.6018,178.54,178.48,3.92815932]
[1753967169494,5.6019,178.53,178.5,5.6026]
[1753967169797,3.92815932,178.56,178.48,3.92815932]
[1753967169997,5.6018,178.54,178.51,5.6023]
[1753967170192,8.53212659,178.59,178.5,3.92815932]
[1753967170395,4.53106897,178.58,178.5,3.92815932]
[1753967170592,5.6011,178.56,178.53,5.6018]
[1753967170792,3.92815932,178.59,178.53,5.6018]
[1753967170990,4.53386726,178.58,178.5,3.92815932]
[1753967171191,5.6016,178.54,178.51,5.6023]
[1753967171703,3.94815932,178.53,178.46,3.13]
[1753967172198,5.6027,178.51,178.48,5.6034]
[1753967172391,3.94815932,178.53,178.46,3.13]
[1753967172591,5.6036,178.48,178.46,3.13]
[1753967172985,3.92815932,178.49,178.46,3.13]
[1753967173189,5.6037,178.47,178.46,3.13]
[1753967173796,5.6035,178.48,178.46,3.13]
[1753967173994,3.92815932,178.49,178.46,3.13]
[1753967175097,3.92815932,178.52,178.46,3.13]
[1753967175488,3.92815932,178.5,178.46,3.13]
[1753967175888,5.6033,178.49,178.46,3.13]
[1753967176090,3.92815932,178.5,178.46,3.13]
[1753967176499,5.6032,178.49,178.46,3.13]
[1753967176696,3.92815932,178.51,178.46,3.13]
[1753967176898,3.94815932,178.51,178.46,3.13]
[1753967177204,5.603,178.5,178.46,3.13]
[1753967177397,5.623,178.5,178.47,3.13]
[1753967177602,0.02,178.5,178.48,3.13]
[1753967178099,5.6031,178.49,178.48,3.13]
[1753967178301,3.92815932,178.49,178.45,3.13]
[1753967178505,3.94815932,178.49,178.45,3.13]
[1753967179303,5.6036,178.48,178.45,3.13]
[1753967179797,3.94815932,178.49,178.45,3.13]
[1753967179798,3.92815932,178.49,178.45,3.13]
[1753967180798,9.55135932,178.49,178.45,3.13]
[1753967181001,9.53135932,178.49,178.45,3.13]
[1753967181302,5.6035,178.48,178.45,3.13]
[1753967181503,0.02,178.5,178.45,8.7343]
[1753967181805,3.94815932,178.5,178.46,3.13]
[1753967182002,3.94815932,178.5,178.43,3.13]
[1753967182496,5.6037,178.48,178.43,8.7347]
[1753967182700,5.6037,178.48,178.42,3.92815932]
[1753967182701,5.6337,178.48,178.44,3.19]
[1753967182898,5.6037,178.48,178.44,3.19]
[1753967183098,3.95815932,178.5,178.46,3.19]
[1753967183300,3.92815932,178.5,178.46,3.19]
[1753967183705,3.92815932,178.5,178.47,3.19]
[1753967183897,3.92815932,178.5,178.43,3.19]
[1753967184297,3.92815932,178.51,178.47,3.19]
[1753967184497,3.92815932,178.51,178.46,5.6039]
[1753967184702,0.03,178.5,178.48,3.19]
[1753967185307,5.6032,178.49,178.48,3.19]
[1753967185909,5.6329,178.5,178.48,3.19]
[1753967186196,4.60396727,178.55,178.44,3.92815932]
[1753967186403,0.03,178.57,178.45,3.19]
[1753967186404,3.95815932,178.53,178.45,3.19]
[1753967186704,5.6027,178.51,178.47,5.6035]
[1753967186892,0.02,178.52,178.48,3.19]
[1753967187098,5.6224,178.52,178.48,3.19]
[1753967187301,5.6024,178.52,178.49,3.19]
[1753967188905,5.6024,178.52,178.49,5.6031]
[1753967189107,5.6024,178.52,178.5,3.19]
[1753967189902,3.92815932,178.55,178.5,3.19]
[1753967190603,3.94815932,178.57,178.5,7.11815932]
[1753967190809,4.53463456,178.56,178.51,3.19]
[1753967191107,4.53463456,178.55,178.51,3.19]
[1753967191306,5.6014,178.55,178.52,3.19]
[1753967191902,5.6014,178.55,178.52,5.6022]
[1753967192102,5.6014,178.55,178.53,3.19]
[1753967192303,5.6015,178.54,178.53,3.19]
[1753967192504,3.94815932,178.57,178.53,3.19]
[1753967192713,4.53616374,178.56,178.53,3.19]
[1753967193007,10.13736374,178.55,178.53,3.19]
[1753967193210,5.6012,178.55,178.53,3.19]
[1753967193406,3.94815932,178.57,178.42,11.2106]
[1753967193606,4.53738302,178.56,178.49,3.19]
[1753967193806,4.53738302,178.55,178.49,3.19]
[1753967194007,5.6014,178.55,178.51,5.6023]
[1753967194208,5.6014,178.55,178.52,3.19]
[1753967195216,5.6016,178.54,178.52,3.19]
[1753967195607,5.6016,178.54,178.53,3.19]
[1753967196305,5.6213,178.55,178.53,3.19]
[1753967196505,0.02,178.55,178.53,3.19]
[1753967196915,5.6212,178.55,178.54,3.19]
[1753967197112,10.15530559,178.55,178.54,3.19]
[1753967197311,10.13530559,178.55,178.54,3.19]
[1753967198809,0.02,178.54,178.47,3.19]
[1753967199009,3.94815932,178.52,178.47,3.19]
[1753967199210,5.6025,178.51,178.47,3.19]
[1753967199415,3.94815932,178.52,178.44,3.92815932]
[1753967199712,3.94815932,178.52,178.45,3.19]
[1753967200320,5.6027,178.51,178.48,3.19]
[1753967200616,3.92815932,178.52,178.48,3.19]
[1753967200814,9.53045932,178.52,178.49,3.19]
[1753967201013,3.92815932,178.52,178.49,3.19]
[1753967201415,4.54480256,178.51,178.49,3.19]
[1753967201613,4.60396727,178.55,178.38,3.92815932]
[1753967201614,3.92815932,178.5,178.42,3.92815932]
[1753967201817,3.92815932,178.5,178.43,3.19]
[1753967202015,5.6033,178.49,178.45,5.6042]
[1753967202214,5.6033,178.49,178.46,3.19]
[1753967202414,4.54605162,178.48,178.46,3.19]
[1753967202608,5.6033,178.49,178.46,3.19]
[1753967202814,4.54605162,178.48,178.46,3.19]
[1753967203013,5.6033,178.49,178.47,3.19]
[1753967203316,4.5468264,178.48,178.44,138.16778999]
[1753967203520,3.94815932,178.5,178.45,5.6041]
[1753967203722,10.15252838,178.49,178.45,5.6041]
[1753967203913,4.54932838,178.48,178.46,3.19]
[1753967204319,14.0808877,178.48,178.46,3.19]
[1753967204514,4.54932838,178.47,178.46,3.19]
[1753967205419,10.18302838,178.47,178.46,3.19]
[1753967206726,10.15302838,178.47,178.46,3.19]
[1753967208026,4.54932838,178.47,178.46,3.19]
[1753967208328,8.4774877,178.47,178.46,3.19]
[1753967208529,10.15302838,178.47,178.46,3.19]
[1753967211929,4.54932838,178.47,178.46,3.19]
[1753967212418,14.0811877,178.47,178.46,3.19]
[1753967212623,14.1011877,178.47,178.46,3.19]
[1753967212823,14.1011877,178.47,178.45,3.3]
[1753967213130,4.54932838,178.46,178.45,3.3]
[1753967213828,10.15352838,178.46,178.45,3.3]
[1753967214027,4.54932838,178.46,178.45,3.3]
[1753967214423,3.92815932,178.48,178.45,3.3]
[1753967214627,4.54894829,178.47,178.45,3.3]
[1753967214928,3.92815932,178.48,178.45,3.3]
[1753967215128,4.54922029,178.47,178.45,3.3]
[1753967215329,5.6041,178.47,178.45,3.3]
[1753967216326,5.6042,178.46,178.41,3.92815932]
[1753967216525,3.94815932,178.48,178.46,3.3]
[1753967216830,10.15358376,178.47,178.46,3.3]
[1753967218134,4.54968376,178.47,178.46,3.3]
[1753967219527,6.18950138,178.53,178.46,3.3]
[1753967219528,4.60396727,178.53,178.46,3.3]
[1753967219732,11.77212659,178.53,178.46,3.3]
[1753967220033,3.24,178.52,178.46,3.3]
[1753967220329,3.92815932,178.51,178.46,5.6041]
[1753967220524,8.72852659,178.56,178.49,3.92815932]
[1753967220727,8.72852659,178.56,178.38,3.92815932]
[1753967220728,0.1964,178.56,178.5,7.22815932]
[1753967221032,0.1964,178.56,178.55,3.3]
[1753967221553,0.1964,178.56,178.47,3.92815932]
[1753967221735,0.1964,178.56,178.55,3.3]
[1753967221936,5.7974,178.56,178.55,3.3]
[1753967222235,0.1964,178.56,178.55,3.3]
[1753967227029,3.4364,178.56,178.55,3.3]
[1753967227224,0.1964,178.56,178.55,3.3]
[1753967227629,8.8416,178.55,178.51,3.92815932]
[1753967227826,3.24,178.54,178.53,3.3]
[1753967228523,3.24,178.54,178.48,3.3]
[1753967228832,3.24,178.5,178.44,3.3]
[1753967229030,3.24,178.5,178.45,3.3]
[1753967229527,3.92815932,178.51,178.45,3.3]
[1753967229528,3.24,178.49,178.45,3.3]
[1753967229732,3.24,178.48,178.46,3.3]
[1753967230836,5.604,178.47,178.41,9.53375932]
[1753967231335,5.6042,178.46,178.42,3.3]
[1753967231737,7.16815932,178.5,178.43,7.22815932]
[1753967231937,5.6034,178.49,178.43,7.22815932]
[1753967232235,3.92815932,178.52,178.46,3.3]
[1753967232626,3.24,178.53,178.47,3.3]
[1753967232835,7.74601551,178.52,178.47,3.3]
[1753967233136,7.74548937,178.51,178.47,3.3]
[1753967233339,3.24,178.51,178.49,3.3]
[1753967233634,3.24,178.51,178.5,3.3]
[1753967233840,7.74605157,178.51,178.5,3.3]
[1753967234028,3.24,178.51,178.5,3.3]
[1753967234228,3.24,178.53,178.5,3.3]
[1753967234425,3.92815932,178.54,178.5,3.3]
[1753967234629,4.5065789,178.53,178.51,3.3]
[1753967234832,5.6025,178.52,178.51,3.3]
[1753967235032,14.03701861,178.52,178.51,1.094]
[1753967235337,14.03701861,178.52,178.38,3.92815932]
[1753967235338,11.67451861,178.52,178.44,5.6047]
[1753967235536,11.67451861,178.52,178.42,3.92815932]
[1753967235537,3.92815932,178.5,178.42,3.92815932]
[1753967235932,5.6037,178.48,178.43,5.6048]
[1753967236236,3.92815932,178.5,178.42,3.92815932]
[1753967236436,3.92815932,178.5,178.44,5.6045]
[1753967236637,3.92815932,178.5,178.42,3.92815932]
[1753967236830,5.6034,178.49,178.44,5.6046]
[1753967237026,3.92815932,178.5,178.45,3.3]
[1753967237834,5.6035,178.48,178.45,3.3]
[1753967238035,3.24,178.49,178.46,3.3]
[1753967238625,3.24,178.48,178.43,3.92815932]
[1753967238830,8.8437,178.48,178.44,8.9047]
[1753967239237,8.8437,178.48,178.44,3.3]
[1753967239538,5.6039,178.47,178.44,3.3]
[1753967240640,3.24,178.48,178.45,3.3]
[1753967241034,3.92815932,178.5,178.45,3.3]
[1753967241343,3.24,178.49,178.41,3.92815932]
[1753967241528,8.8441,178.46,178.45,3.3]
[1753967241727,8.8441,178.46,178.36,103.78]
[1753967241728,3.24,178.49,178.42,7.22815932]
[1753967241932,4.50639656,178.48,178.44,3.92815932]
[1753967242127,3.08,178.51,178.45,3.3]
[1753967242333,7.58660625,178.5,178.47,3.2]
[1753967242536,4.50631567,178.49,178.48,3.92815932]
[1753967242736,4.60396727,178.54,178.48,127.94897772]
[1753967243038,10.10912244,178.53,178.51,3.2]
[1753967243337,6.18950138,178.57,178.51,3.2]
[1753967243338,4.50692244,178.52,178.51,3.2]
[1753967243542,10.20506727,178.56,178.52,5.602]
[1753967243837,3.08,178.54,178.53,3.2]
[1753967244032,13.1896634,178.54,178.53,3.2]
[1753967244832,8.6819,178.54,178.53,3.2]
[1753967245028,8.682,178.53,178.52,130.41041837]
[1753967245937,3.08,178.53,178.52,130.41041837]
[1753967246239,3.08,178.57,178.53,3.2]
[1753967246538,13.19001035,178.56,178.54,3.2]
[1753967246739,8.6813,178.56,178.54,3.2]
[1753967247144,3.08,178.55,178.54,3.2]
[1753967247436,3.08,178.54,178.53,3.2]
[1753967247640,3.08,178.54,178.52,127.21041837]
[1753967248038,5.602,178.53,178.52,127.21041837]
[1753967248344,8.682,178.53,178.52,127.21041837]
[1753967249746,8.682,178.53,178.52,130.41041837]
[1753967249941,5.602,178.53,178.52,130.41041837]
[1753967250142,5.6018,178.54,178.52,130.41041837]
[1753967250341,5.6018,178.54,178.53,3.2]
[1753967251042,8.6818,178.54,178.53,3.2]
[1753967251238,8.682,178.53,178.52,3.2]
[1753967251438,3.08,178.56,178.5,3.2]
[1753967251639,5.6022,178.53,178.51,3.2]
[1753967251847,3.08,178.52,178.48,3.92815932]
[1753967252140,3.08,178.52,178.49,3.2]
[1753967252349,3.08,178.52,178.5,3.2]
[1753967252848,3.08,178.56,178.49,3.2]
[1753967253046,4.50774977,178.55,178.49,3.2]
[1753967253246,5.6025,178.52,178.49,3.2]
[1753967253446,8.6825,178.52,178.49,3.2]
[1753967254141,8.6827,178.51,178.49,3.2]
[1753967254336,8.6827,178.51,178.5,3.2]
[1753967255953,3.08,178.51,178.47,3.2]
[1753967256148,3.92815932,178.55,178.47,3.2]
[1753967256343,3.08,178.51,178.47,3.2]
[1753967257050,3.08,178.54,178.47,3.2]
[1753967257250,4.51331184,178.53,178.47,3.2]
[1753967257553,8.6834,178.49,178.48,3.2]
[1753967258947,8.6834,178.49,178.46,3.2]
[1753967258948,5.604,178.47,178.46,3.2]
[1753967259350,3.08,178.49,178.46,3.2]
[1753967259645,5.6037,178.48,178.45,107.74815932]
[1753967259845,8.6837,178.48,178.47,3.2]
[1753967260650,5.6039,178.47,178.46,3.2]
[1753967261449,8.6839,178.47,178.46,3.2]
[1753967261755,5.6039,178.47,178.44,3.2]
[1753967261954,3.08,178.46,178.45,3.2]
[1753967262153,5.6047,178.45,178.43,3.2]
[1753967262454,8.6847,178.45,178.44,3.2]
[1753967263255,3.08,178.44,178.37,3.2]
[1753967263649,5.6057,178.42,178.37,3.2]
[1753967263850,8.6857,178.42,178.37,3.2]
[1753967265354,3.92815932,178.43,178.37,3.2]
[1753967265561,3.08,178.4,178.37,3.2]
[1753967265957,5.6066,178.39,178.37,3.2]
[1753967266151,3.08,178.4,178.37,3.2]
[1753967266353,3.08,178.4,178.38,3.2]
[1753967266552,3.08,178.4,178.35,107.19871427]
[1753967266751,8.6861,178.4,178.39,3.2]
[1753967267155,3.08,178.44,178.39,3.2]
[1753967267358,4.50641883,178.43,178.39,3.2]
[1753967267560,3.08,178.44,178.39,3.2]
[1753967267856,3.08,178.42,178.39,3.2]
[1753967268052,3.08,178.43,178.36,3.92815932]
[1753967268252,4.50586368,178.42,178.36,3.92815932]
[1753967268559,3.08,178.41,178.35,3.49871427]
[1753967268762,5.6068,178.38,178.36,3.2]
[1753967269256,3.08,178.4,178.36,3.2]
[1753967269459,3.08,178.38,178.37,3.2]
[1753967270161,8.687,178.38,178.36,3.2]
[1753967270464,8.687,178.38,178.35,3.49871427]
[1753967270465,8.687,178.38,178.37,3.2]
[1753967270860,3.08,178.38,178.37,3.2]
[1753967272257,5.6062,178.4,178.37,3.2]
[1753967272455,3.25,178.44,178.39,3.13]
[1753967272655,3.92815932,178.47,178.4,3.92815932]
[1753967272855,5.6048,178.45,178.42,9.53345932]
[1753967273054,3.25,178.48,178.44,3.92815932]
[1753967273256,3.25,178.48,178.46,3.13]
[1753967273555,5.81249,178.47,178.45,3.92815932]
[1753967273960,5.6042,178.46,178.45,3.92815932]
[1753967274167,3.25,178.46,178.37,103.78]
[1753967274362,3.25,178.46,178.41,3.92815932]
[1753967274560,3.25,178.44,178.43,3.13]
[1753967274860,3.25,178.42,178.41,3.13]
[1753967275056,3.25,178.42,178.39,3.92815932]
[1753967275365,3.25,178.41,178.4,3.13]
[1753967275759,3.25,178.44,178.39,3.13]
[1753967276256,8.8561,178.4,178.39,3.13]
[1753967276761,3.25,178.42,178.36,3.13]
[1753967276954,3.92815932,178.41,178.35,3.49871427]
[1753967277156,3.25,178.38,178.37,3.13]
[1753967277360,8.8567,178.38,178.37,3.13]
[1753967279068,5.6067,178.38,178.37,3.13]
[1753967280167,3.92815932,178.43,178.35,3.49871427]
[1753967280458,3.25,178.44,178.39,3.13]
[1753967280664,5.6057,178.42,178.39,3.13]
[1753967281166,3.25,178.41,178.39,3.13]
[1753967281461,8.8564,178.4,178.39,3.13]
[1753967282461,7.17815932,178.45,178.39,3.13]
[1753967282763,3.25,178.45,178.39,3.13]
[1753967282963,4.13664932,178.47,178.4,3.92815932]
[1753967283163,3.25,178.44,178.41,3.13]
[1753967283359,3.25,178.43,178.39,3.92815932]
[1753967283563,3.25,178.42,178.37,3.13]
[1753967283764,3.25,178.42,178.38,3.13]
[1753967284065,8.8571,178.37,178.36,3.13]
[1753967284271,3.25,178.37,178.35,3.49871427]
[1753967284568,8.8574,178.36,178.35,6.62871427]
[1753967285660,3.25,178.4,178.37,3.13]
[1753967285966,3.92815932,178.45,178.36,3.92815932]
[1753967286169,3.25,178.4,178.39,3.13]
[1753967286376,3.25,178.44,178.39,3.13]
[1753967286970,3.25,178.44,178.42,3.13]
[1753967287166,8.8552,178.43,178.42,3.13]
[1753967287565,4.13664932,178.47,178.42,3.13]
[1753967287566,3.25,178.46,178.42,3.13]
[1753967287768,3.25,178.46,178.43,3.92815932]
[1753967287969,0.20849,178.47,178.44,3.13]
[1753967288273,0.20849,178.47,178.38,3.92815932]
[1753967288274,5.81249,178.47,178.46,3.13]
[1753967288473,0.20849,178.47,178.46,3.13]
[1753967290274,5.81239,178.47,178.46,3.13]
[1753967290470,0.20849,178.47,178.44,3.13]
[1753967290774,5.6048,178.45,178.42,3.13]
[1753967290970,3.25,178.46,178.42,3.13]
[1753967291172,3.25,178.45,178.42,3.13]
[1753967291373,3.45849,178.47,178.41,3.92815932]
[1753967291574,3.25,178.46,178.44,3.13]
[1753967291877,0.20849,178.47,178.46,3.13]
[1753967292471,5.81249,178.47,178.46,3.13]
[1753967292971,5.6046,178.45,178.43,3.92815932]
[1753967293176,8.8546,178.45,178.44,3.13]
[1753967293473,3.25,178.44,178.43,3.13]
[1753967293682,8.8549,178.44,178.43,3.13]
[1753967294673,3.25,178.44,178.41,3.92815932]
[1753967294976,3.92815932,178.43,178.37,3.13]
[1753967295167,3.25,178.42,178.37,3.13]
[1753967295372,3.25,178.38,178.36,3.13]
[1753967295573,3.92815932,178.41,178.36,3.13]
[1753967295771,3.25,178.39,178.37,3.13]
[1753967295971,3.25,178.39,178.36,3.13]
[1753967296181,3.25,178.39,178.37,3.13]
[1753967296484,3.25,178.41,178.36,3.13]
[1753967297078,5.6074,178.36,178.35,6.62871427]
[1753967297479,3.25,178.38,178.36,3.13]
[1753967297986,6.4573671,178.42,178.35,6.62871427]
[1753967298184,3.25,178.36,178.35,6.62871427]
[1753967298483,5.6074,178.36,178.35,6.62871427]
[1753967299386,3.25,178.36,178.35,6.62871427]
[1753967299787,8.8571,178.37,178.36,3.13]
[1753967299984,8.8574,178.36,178.35,3.49871427]
[1753967300574,8.8574,178.36,178.35,6.62871427]
[1753967300980,8.8574,178.36,178.35,3.49871427]
[1753967301388,8.8574,178.36,178.35,6.62871427]
[1753967301685,3.25,178.36,178.35,6.62871427]
[1753967302087,3.25,178.36,178.35,3.49871427]
[1753967302288,8.8574,178.36,178.35,3.49871427]
[1753967302587,8.8574,178.36,178.35,6.53871427]
[1753967302787,5.6074,178.36,178.35,6.53871427]
[1753967303183,5.6071,178.37,178.35,6.53871427]
[1753967303383,6.18950138,178.44,178.35,6.53871427]
[1753967303384,3.03,178.42,178.36,9.4973671]
[1753967303590,4.81245727,178.47,178.4,9.4973671]
[1753967303881,3.03,178.45,178.4,3.04]
[1753967304087,4.51603268,178.44,178.4,3.04]
[1753967304392,4.51603268,178.44,178.4,6.4573671]
[1753967304393,4.51603268,178.43,178.4,6.4573671]
[1753967304583,3.03,178.46,178.41,3.04]
[1753967304786,7.54142051,178.45,178.41,3.04]
[1753967304984,3.03,178.43,178.36,6.4573671]
[1753967305181,4.51142051,178.42,178.38,3.04]
[1753967305385,3.03,178.44,178.39,3.04]
[1753967305581,4.51404397,178.43,178.39,3.04]
[1753967305788,4.51409034,178.42,178.4,5.6061]
[1753967306090,5.6054,178.43,178.42,3.04]